[Event "Titled Tuesday Blitz January 10 Late 2023"]
[White "Dimitrov, Atanas"]
[Black "Mosadeghpour, Masoud"]
[WhiteFideId "2901315"]
[BlackFideId "12519278"]
[WhiteElo "2269"]
[BlackElo "2472"]
[Result "0-1"]
[Round "05"]
[TimeControl "180+2"]
[Date "2023.01.10"]
[WhiteClock "0:00:05"]
[BlackClock "0:01:14"]

1. Nf3 {[%clk 0:00:00]}  Nf6 {[%clk 0:00:00]} 2. c4 {[%clk 0:03:00]}  e6 {[%clk 0:02:59]} 3. Nc3 {[%clk 0:03:01]}  d5 {[%clk 0:03:00]} 4. e3 {[%clk 0:03:01]}  c5 {[%clk 0:03:00]} 5. cxd5 {[%clk 0:03:02]}  exd5 {[%clk 0:02:59]} 6. d4 {[%clk 0:03:01]}  Nc6 {[%clk 0:02:59]} 7. Be2 {[%clk 0:03:02]}  Be7 {[%clk 0:02:59]} 8. dxc5 {[%clk 0:03:02]}  O-O {[%clk 0:02:57]} 9. O-O {[%clk 0:03:00]}  Bxc5 {[%clk 0:02:56]} 10. b3 {[%clk 0:03:00]}  Be6 {[%clk 0:02:56]} 11. Bb2 {[%clk 0:03:00]}  Rc8 {[%clk 0:02:54]} 12. Rc1 {[%clk 0:03:00]}  Re8 {[%clk 0:02:54]} 13. Nxd5 {[%clk 0:03:00]}  Qxd5 {[%clk 0:02:51]} 14. Qxd5 {[%clk 0:02:31]}  Nxd5 {[%clk 0:02:33]} 15. Rxc5 {[%clk 0:02:29]}  Ncb4 {[%clk 0:02:34]} 16. Rxc8 {[%clk 0:02:28]}  Rxc8 {[%clk 0:02:34]} 17. Nd4 {[%clk 0:02:15]}  Nxa2 {[%clk 0:02:35]} 18. Nxe6 {[%clk 0:02:09]}  fxe6 {[%clk 0:02:33]} 19. Bc4 {[%clk 0:02:06]}  Nab4 {[%clk 0:02:34]} 20. g3 {[%clk 0:01:59]}  Kf7 {[%clk 0:02:29]} 21. Rd1 {[%clk 0:01:54]}  a6 {[%clk 0:02:27]} 22. Bd4 {[%clk 0:01:51]}  b5 {[%clk 0:02:16]} 23. Bxd5 {[%clk 0:01:13]}  Nxd5 {[%clk 0:02:13]} 24. Ra1 {[%clk 0:01:08]}  Rc6 {[%clk 0:02:09]} 25. Kg2 {[%clk 0:01:03]}  Nb4 {[%clk 0:02:09]} 26. h4 {[%clk 0:01:03]}  Nc2 {[%clk 0:02:06]} 27. Ra2 {[%clk 0:00:58]}  Ne1+ {[%clk 0:02:06]} 28. Kf1 {[%clk 0:00:50]}  Nd3 {[%clk 0:02:03]} 29. Rd2 {[%clk 0:00:46]}  Nb4 {[%clk 0:02:03]} 30. Ke2 {[%clk 0:00:43]}  a5 {[%clk 0:01:56]} 31. Be5 {[%clk 0:00:42]}  Nd5 {[%clk 0:01:37]} 32. e4 {[%clk 0:00:39]}  Nf6 {[%clk 0:01:32]} 33. f3 {[%clk 0:00:36]}  a4 {[%clk 0:01:31]} 34. bxa4 {[%clk 0:00:33]}  bxa4 {[%clk 0:01:30]} 35. Bxf6 {[%clk 0:00:33]}  Kxf6 {[%clk 0:01:31]} 36. Ke3 {[%clk 0:00:26]}  Ra6 {[%clk 0:01:30]} 37. Ra2 {[%clk 0:00:22]}  a3 {[%clk 0:01:29]} 38. f4 {[%clk 0:00:21]}  e5 {[%clk 0:01:29]} 39. g4 {[%clk 0:00:17]}  exf4+ {[%clk 0:01:28]} 40. Kxf4 {[%clk 0:00:16]}  Ke6 {[%clk 0:01:26]} 41. h5 {[%clk 0:00:17]}  h6 {[%clk 0:01:27]} 42. g5 {[%clk 0:00:15]}  Ra5 {[%clk 0:01:23]} 43. gxh6 {[%clk 0:00:15]}  gxh6 {[%clk 0:01:23]} 44. e5 {[%clk 0:00:13]}  Ra4+ {[%clk 0:01:24]} 45. Ke3 {[%clk 0:00:12]}  Kxe5 {[%clk 0:01:23]} 46. Kd3 {[%clk 0:00:10]}  Kf5 {[%clk 0:01:24]} 47. Kc3 {[%clk 0:00:11]}  Kg5 {[%clk 0:01:19]} 48. Kb3 {[%clk 0:00:12]}  Ra8 {[%clk 0:01:18]} 49. Rg2+ {[%clk 0:00:13]}  Kxh5 {[%clk 0:01:18]} 50. Ka2 {[%clk 0:00:13]}  Ra4 {[%clk 0:01:17]} 51. Rh2+ {[%clk 0:00:13]}  Rh4 {[%clk 0:01:15]} 52. Rf2 {[%clk 0:00:12]}  Rh3 {[%clk 0:01:15]} 53. Rf4 {[%clk 0:00:12]}  Rg3 {[%clk 0:01:15]} 54. Rf8 {[%clk 0:00:12]}  Kg5 {[%clk 0:01:15]} 55. Rh8 {[%clk 0:00:10]}  h5 {[%clk 0:01:13]} 56. Rg8+ {[%clk 0:00:11]}  Kh4 {[%clk 0:01:13]} 57. Rc8 {[%clk 0:00:11]}  Kh3 {[%clk 0:01:13]} 58. Rc1 {[%clk 0:00:11]}  h4 {[%clk 0:01:13]} 59. Rh1+ {[%clk 0:00:10]}  Kg4 {[%clk 0:01:13]} 60. Rc1 {[%clk 0:00:10]}  Rf3 {[%clk 0:01:13]} 61. Rc4+ {[%clk 0:00:11]}  Kg3 {[%clk 0:01:13]} 62. Rc8 {[%clk 0:00:12]}  h3 {[%clk 0:01:13]} 63. Rg8+ {[%clk 0:00:09]}  Kf2 {[%clk 0:01:13]} 64. Rh8 {[%clk 0:00:10]}  Kg2 {[%clk 0:01:13]} 65. Rg8+ {[%clk 0:00:11]}  Rg3 {[%clk 0:01:13]} 66. Rc8 {[%clk 0:00:12]}  h2 {[%clk 0:01:13]} 67. Rc2+ {[%clk 0:00:12]}  Kh3 {[%clk 0:01:14]} 68. Rc1 {[%clk 0:00:13]}  Rg2+ {[%clk 0:01:14]} 69. Kxa3 {[%clk 0:00:05]}  Rg1 {[%clk 0:01:14]} 70. Rc3+ {[%clk 0:00:05]}  Rg3 {[%clk 0:01:14]} 0-1


[Site "https://www.chess.com"]

[Event "Titled Tuesday Blitz January 10 Late 2023"]
[White "Zierk, Steven"]
[Black "Barrientos, Sergio E"]
[WhiteFideId "2034255"]
[BlackFideId "4401824"]
[WhiteElo "2488"]
[BlackElo "2479"]
[Result "1-0"]
[Round "05"]
[TimeControl "180+2"]
[Date "2023.01.10"]
[WhiteClock "0:01:27"]
[BlackClock "0:00:12"]

1. e4 {[%clk 0:00:00]}  c5 {[%clk 0:00:00]} 2. Nf3 {[%clk 0:03:00]}  e6 {[%clk 0:02:51]} 3. d4 {[%clk 0:03:00]}  cxd4 {[%clk 0:02:51]} 4. Nxd4 {[%clk 0:03:00]}  a6 {[%clk 0:02:51]} 5. c4 {[%clk 0:03:01]}  Qc7 {[%clk 0:02:50]} 6. Nc3 {[%clk 0:03:00]}  Nf6 {[%clk 0:02:49]} 7. a3 {[%clk 0:03:00]}  b6 {[%clk 0:02:47]} 8. Be3 {[%clk 0:02:59]}  Bb7 {[%clk 0:02:47]} 9. f3 {[%clk 0:02:58]}  Nc6 {[%clk 0:02:47]} 10. Rc1 {[%clk 0:02:58]}  Nxd4 {[%clk 0:02:46]} 11. Bxd4 {[%clk 0:02:55]}  Bd6 {[%clk 0:02:39]} 12. g3 {[%clk 0:02:54]}  h5 {[%clk 0:02:39]} 13. Bg2 {[%clk 0:02:48]}  h4 {[%clk 0:02:38]} 14. f4 {[%clk 0:02:45]}  hxg3 {[%clk 0:02:35]} 15. hxg3 {[%clk 0:02:44]}  Rxh1+ {[%clk 0:02:29]} 16. Bxh1 {[%clk 0:02:44]}  Bc5 {[%clk 0:02:30]} 17. b4 {[%clk 0:02:45]}  Bxd4 {[%clk 0:02:06]} 18. Qxd4 {[%clk 0:02:40]}  Rc8 {[%clk 0:02:01]} 19. Na4 {[%clk 0:02:41]}  b5 {[%clk 0:02:01]} 20. Nb6 {[%clk 0:02:32]}  Rd8 {[%clk 0:01:43]} 21. c5 {[%clk 0:02:31]}  d6 {[%clk 0:01:43]} 22. c6 {[%clk 0:02:24]}  e5 {[%clk 0:01:41]} 23. fxe5 {[%clk 0:02:14]}  dxe5 {[%clk 0:01:26]} 24. Qc5 {[%clk 0:02:09]}  Bc8 {[%clk 0:01:25]} 25. Bf3 {[%clk 0:02:08]}  Be6 {[%clk 0:01:25]} 26. Rd1 {[%clk 0:02:01]}  Rxd1+ {[%clk 0:01:22]} 27. Kxd1 {[%clk 0:01:54]}  Bc4 {[%clk 0:01:13]} 28. Nd5 {[%clk 0:01:54]}  Bxd5 {[%clk 0:00:41]} 29. exd5 {[%clk 0:01:41]}  e4 {[%clk 0:00:19]} 30. d6 {[%clk 0:01:42]}  Qb8 {[%clk 0:00:20]} 31. Qe5+ {[%clk 0:01:42]}  Kf8 {[%clk 0:00:15]} 32. c7 {[%clk 0:01:28]}  Qc8 {[%clk 0:00:14]} 33. Qe7+ {[%clk 0:01:28]}  Kg8 {[%clk 0:00:12]} 34. Qd8+ {[%clk 0:01:27]} 1-0


[Site "https://www.chess.com"]

[Event "Titled Tuesday Blitz January 10 Late 2023"]
[White "Kamsky, Gata"]
[Black "Hernandez Gonzalez, William"]
[WhiteFideId "2000024"]
[BlackFideId "3509915"]
[WhiteElo "2665"]
[BlackElo "2489"]
[Result "1-0"]
[Round "05"]
[TimeControl "180+2"]
[Date "2023.01.10"]
[WhiteClock "0:00:47"]
[BlackClock "0:00:21"]

1. e4 {[%clk 0:00:00]}  c5 {[%clk 0:00:00]} 2. Nf3 {[%clk 0:02:53]}  d6 {[%clk 0:02:57]} 3. d4 {[%clk 0:02:46]}  cxd4 {[%clk 0:02:57]} 4. Nxd4 {[%clk 0:02:44]}  Nf6 {[%clk 0:02:57]} 5. Nc3 {[%clk 0:02:43]}  g6 {[%clk 0:02:56]} 6. Be3 {[%clk 0:02:43]}  a6 {[%clk 0:02:56]} 7. a4 {[%clk 0:02:36]}  Bg7 {[%clk 0:02:55]} 8. f3 {[%clk 0:02:34]}  O-O {[%clk 0:02:53]} 9. Qd2 {[%clk 0:02:34]}  b6 {[%clk 0:02:50]} 10. Bc4 {[%clk 0:02:32]}  Bb7 {[%clk 0:02:50]} 11. O-O {[%clk 0:02:31]}  Nbd7 {[%clk 0:02:46]} 12. Rfd1 {[%clk 0:02:30]}  Rc8 {[%clk 0:02:45]} 13. Qe2 {[%clk 0:02:30]}  Ra8 {[%clk 0:02:44]} 14. Nd5 {[%clk 0:02:29]}  Nxd5 {[%clk 0:02:19]} 15. exd5 {[%clk 0:02:20]}  Qc7 {[%clk 0:02:11]} 16. c3 {[%clk 0:02:20]}  Nf6 {[%clk 0:02:08]} 17. Nc2 {[%clk 0:01:47]}  Rfe8 {[%clk 0:01:58]} 18. Nb4 {[%clk 0:01:39]}  a5 {[%clk 0:01:57]} 19. Nc2 {[%clk 0:01:38]}  e5 {[%clk 0:01:28]} 20. dxe6 {[%clk 0:01:37]}  fxe6 {[%clk 0:01:22]} 21. Na3 {[%clk 0:01:36]}  d5 {[%clk 0:01:22]} 22. Bb5 {[%clk 0:01:13]}  Bc6 {[%clk 0:01:20]} 23. Bxc6 {[%clk 0:01:12]}  Qxc6 {[%clk 0:01:10]} 24. Qb5 {[%clk 0:01:11]}  Qxb5 {[%clk 0:01:10]} 25. Nxb5 {[%clk 0:01:11]}  Rab8 {[%clk 0:01:04]} 26. Rd2 {[%clk 0:01:11]}  Nd7 {[%clk 0:01:02]} 27. Re1 {[%clk 0:01:02]}  Ne5 {[%clk 0:00:53]} 28. Bf4 {[%clk 0:01:00]}  Nc4 {[%clk 0:00:37]} 29. Rde2 {[%clk 0:00:49]}  e5 {[%clk 0:00:34]} 30. Bg3 {[%clk 0:00:48]}  Rbd8 {[%clk 0:00:33]} 31. b3 {[%clk 0:00:48]}  Nd6 {[%clk 0:00:21]} 32. Nc7 {[%clk 0:00:47]}  Rf8 {[%clk 0:00:21]} 33. Ne6 {[%clk 0:00:47]} 1-0


[Site "https://www.chess.com"]

[Event "Titled Tuesday Blitz January 10 Late 2023"]
[White "Tatarinov, Dmitry"]
[Black "Melkumyan, Hrant"]
[WhiteFideId "24160067"]
[BlackFideId "13302485"]
[WhiteElo "2310"]
[BlackElo "2645"]
[Result "1-0"]
[Round "05"]
[TimeControl "180+2"]
[Date "2023.01.10"]
[WhiteClock "0:00:16"]
[BlackClock "0:00:09"]

1. c4 {[%clk 0:00:00]}  Nf6 {[%clk 0:00:00]} 2. Nf3 {[%clk 0:03:00]}  g6 {[%clk 0:02:58]} 3. g3 {[%clk 0:03:00]}  b6 {[%clk 0:02:56]} 4. Bg2 {[%clk 0:02:59]}  Bb7 {[%clk 0:02:56]} 5. O-O {[%clk 0:02:59]}  Bg7 {[%clk 0:02:56]} 6. Nc3 {[%clk 0:03:00]}  O-O {[%clk 0:02:57]} 7. Re1 {[%clk 0:03:01]}  Ne4 {[%clk 0:02:56]} 8. Nxe4 {[%clk 0:03:01]}  Bxe4 {[%clk 0:02:56]} 9. d3 {[%clk 0:03:00]}  Bb7 {[%clk 0:02:56]} 10. e4 {[%clk 0:03:01]}  c5 {[%clk 0:02:56]} 11. h4 {[%clk 0:03:01]}  Nc6 {[%clk 0:02:55]} 12. h5 {[%clk 0:02:56]}  d6 {[%clk 0:02:53]} 13. Rb1 {[%clk 0:02:56]}  Qd7 {[%clk 0:02:51]} 14. Be3 {[%clk 0:02:51]}  Ne5 {[%clk 0:02:45]} 15. h6 {[%clk 0:02:50]}  Bh8 {[%clk 0:02:37]} 16. Nxe5 {[%clk 0:02:44]}  dxe5 {[%clk 0:02:36]} 17. b4 {[%clk 0:02:31]}  cxb4 {[%clk 0:02:33]} 18. Rxb4 {[%clk 0:02:30]}  Rfd8 {[%clk 0:02:34]} 19. Rb3 {[%clk 0:02:30]}  Bf6 {[%clk 0:02:34]} 20. Qb1 {[%clk 0:02:30]}  Bc6 {[%clk 0:02:34]} 21. Rc1 {[%clk 0:02:29]}  e6 {[%clk 0:02:34]} 22. Qb2 {[%clk 0:02:22]}  Rac8 {[%clk 0:02:26]} 23. c5 {[%clk 0:02:16]}  b5 {[%clk 0:02:22]} 24. Ra3 {[%clk 0:02:15]}  Rb8 {[%clk 0:02:21]} 25. Ra6 {[%clk 0:02:13]}  Rdc8 {[%clk 0:02:17]} 26. Qb4 {[%clk 0:02:10]}  Bd8 {[%clk 0:02:15]} 27. d4 {[%clk 0:02:00]}  exd4 {[%clk 0:02:09]} 28. Bxd4 {[%clk 0:01:57]}  Be7 {[%clk 0:01:58]} 29. Be5 {[%clk 0:01:56]}  Ra8 {[%clk 0:01:58]} 30. Bd6 {[%clk 0:01:53]}  Bg5 {[%clk 0:01:53]} 31. Rd1 {[%clk 0:01:46]}  Bxh6 {[%clk 0:01:37]} 32. Rxc6 {[%clk 0:01:45]}  Rxc6 {[%clk 0:01:37]} 33. e5 {[%clk 0:01:37]}  a6 {[%clk 0:01:26]} 34. Bf3 {[%clk 0:01:36]}  Bg7 {[%clk 0:01:21]} 35. Kg2 {[%clk 0:01:25]}  Rac8 {[%clk 0:01:20]} 36. Rd3 {[%clk 0:01:22]}  Qa7 {[%clk 0:01:16]} 37. Bxc6 {[%clk 0:01:14]}  Rxc6 {[%clk 0:01:11]} 38. Qa5 {[%clk 0:01:11]}  Qa8 {[%clk 0:01:12]} 39. Kh2 {[%clk 0:01:07]}  h5 {[%clk 0:01:10]} 40. Qd2 {[%clk 0:01:00]}  Rc8 {[%clk 0:01:08]} 41. Qf4 {[%clk 0:00:51]}  Qb7 {[%clk 0:01:07]} 42. g4 {[%clk 0:00:50]}  hxg4 {[%clk 0:01:00]} 43. Qxg4 {[%clk 0:00:37]}  Rd8 {[%clk 0:00:51]} 44. Rh3 {[%clk 0:00:37]}  Qc8 {[%clk 0:00:37]} 45. Qh4 {[%clk 0:00:32]}  Rxd6 {[%clk 0:00:29]} 46. exd6 {[%clk 0:00:20]}  Qd7 {[%clk 0:00:29]} 47. Qe7 {[%clk 0:00:19]}  Be5+ {[%clk 0:00:13]} 48. Kg1 {[%clk 0:00:18]}  Qc8 {[%clk 0:00:09]} 49. d7 {[%clk 0:00:16]} 1-0


[Site "https://www.chess.com"]

[Event "Titled Tuesday Blitz January 10 Late 2023"]
[White "UnknownMagician"]
[Black "Svane, Frederik"]
[BlackFideId "12923044"]
[WhiteElo "2662"]
[BlackElo "2600"]
[Result "0-1"]
[Round "05"]
[TimeControl "180+2"]
[Date "2023.01.10"]
[WhiteClock "0:00:47"]
[BlackClock "0:00:19"]

1. c4 {[%clk 0:00:00]}  e6 {[%clk 0:00:00]} 2. Nf3 {[%clk 0:03:00]}  d5 {[%clk 0:02:53]} 3. e3 {[%clk 0:03:00]}  Nf6 {[%clk 0:02:52]} 4. Nc3 {[%clk 0:03:00]}  Bd6 {[%clk 0:02:52]} 5. b3 {[%clk 0:03:00]}  O-O {[%clk 0:02:37]} 6. Bb2 {[%clk 0:02:58]}  c5 {[%clk 0:02:36]} 7. cxd5 {[%clk 0:02:58]}  exd5 {[%clk 0:02:37]} 8. d4 {[%clk 0:02:58]}  cxd4 {[%clk 0:02:38]} 9. Nxd4 {[%clk 0:02:57]}  Nc6 {[%clk 0:02:39]} 10. Bb5 {[%clk 0:02:58]}  Nxd4 {[%clk 0:02:39]} 11. Qxd4 {[%clk 0:02:57]}  a6 {[%clk 0:02:36]} 12. Be2 {[%clk 0:02:54]}  Re8 {[%clk 0:02:36]} 13. O-O {[%clk 0:02:53]}  Be5 {[%clk 0:02:35]} 14. Qd2 {[%clk 0:02:51]}  Be6 {[%clk 0:02:36]} 15. Bf3 {[%clk 0:02:49]}  Qa5 {[%clk 0:02:35]} 16. a3 {[%clk 0:02:44]}  Rac8 {[%clk 0:02:23]} 17. b4 {[%clk 0:02:37]}  Qc7 {[%clk 0:02:22]} 18. Rac1 {[%clk 0:02:37]}  Qd6 {[%clk 0:02:22]} 19. Rfd1 {[%clk 0:02:37]}  Bxh2+ {[%clk 0:01:59]} 20. Kh1 {[%clk 0:02:29]}  Be5 {[%clk 0:01:57]} 21. Ne2 {[%clk 0:02:29]}  Rxc1 {[%clk 0:01:58]} 22. Rxc1 {[%clk 0:02:20]}  Bg4 {[%clk 0:01:52]} 23. Bxe5 {[%clk 0:02:20]}  Qxe5 {[%clk 0:01:50]} 24. Nd4 {[%clk 0:02:16]}  h6 {[%clk 0:01:45]} 25. Kg1 {[%clk 0:02:12]}  h5 {[%clk 0:01:33]} 26. Qc3 {[%clk 0:02:10]}  Qg5 {[%clk 0:01:25]} 27. Bxg4 {[%clk 0:02:08]}  hxg4 {[%clk 0:01:00]} 28. Ne2 {[%clk 0:01:48]}  Ne4 {[%clk 0:00:59]} 29. Qd4 {[%clk 0:01:42]}  g3 {[%clk 0:00:51]} 30. Nxg3 {[%clk 0:01:42]}  Nxg3 {[%clk 0:00:48]} 31. fxg3 {[%clk 0:01:27]}  Rxe3 {[%clk 0:00:47]} 32. Rc8+ {[%clk 0:01:28]}  Kh7 {[%clk 0:00:27]} 33. Qh4+ {[%clk 0:01:03]}  Qxh4 {[%clk 0:00:26]} 34. gxh4 {[%clk 0:01:03]}  Rxa3 {[%clk 0:00:26]} 35. Rd8 {[%clk 0:01:04]}  Rb3 {[%clk 0:00:23]} 36. Rxd5 {[%clk 0:01:05]}  Rxb4 {[%clk 0:00:21]} 37. g3 {[%clk 0:00:54]}  b5 {[%clk 0:00:22]} 38. Rd6 {[%clk 0:00:55]}  a5 {[%clk 0:00:21]} 39. Ra6 {[%clk 0:00:55]}  a4 {[%clk 0:00:21]} 40. Kg2 {[%clk 0:00:55]}  Rb3 {[%clk 0:00:21]} 41. g4 {[%clk 0:00:55]}  f6 {[%clk 0:00:22]} 42. g5 {[%clk 0:00:51]}  fxg5 {[%clk 0:00:18]} 43. hxg5 {[%clk 0:00:48]}  a3 {[%clk 0:00:19]} 44. Kf2 {[%clk 0:00:49]}  b4 {[%clk 0:00:18]} 45. Ke2 {[%clk 0:00:47]}  Rb2+ {[%clk 0:00:19]} 46. Kd3 {[%clk 0:00:47]}  a2 {[%clk 0:00:19]} 47. Kc4 {[%clk 0:00:47]}  b3 {[%clk 0:00:19]} 0-1


[Site "https://www.chess.com"]

[Event "Titled Tuesday Blitz January 10 Late 2023"]
[White "Ibarra Jerez, Jose Carlos"]
[Black "Hamley, Ryan"]
[WhiteFideId "2226332"]
[BlackFideId "30959497"]
[WhiteElo "2563"]
[BlackElo "2092"]
[Result "1-0"]
[Round "05"]
[TimeControl "180+2"]
[Date "2023.01.10"]
[WhiteClock "0:00:07"]
[BlackClock "0:00:07"]

1. Nf3 {[%clk 0:00:00]}  Nf6 {[%clk 0:00:00]} 2. g3 {[%clk 0:03:00]}  g6 {[%clk 0:02:59]} 3. b3 {[%clk 0:03:01]}  Bg7 {[%clk 0:02:56]} 4. Bb2 {[%clk 0:03:01]}  O-O {[%clk 0:02:57]} 5. Bg2 {[%clk 0:03:02]}  d5 {[%clk 0:02:58]} 6. c4 {[%clk 0:03:02]}  c5 {[%clk 0:02:56]} 7. cxd5 {[%clk 0:03:02]}  Nxd5 {[%clk 0:02:54]} 8. Bxg7 {[%clk 0:03:00]}  Kxg7 {[%clk 0:02:55]} 9. O-O {[%clk 0:03:01]}  Nc6 {[%clk 0:02:56]} 10. d4 {[%clk 0:03:01]}  cxd4 {[%clk 0:02:56]} 11. Nxd4 {[%clk 0:03:01]}  Nxd4 {[%clk 0:02:44]} 12. Qxd4+ {[%clk 0:03:01]}  Nf6 {[%clk 0:02:45]} 13. Qe5 {[%clk 0:03:01]}  Re8 {[%clk 0:02:46]} 14. Nc3 {[%clk 0:03:02]}  Qb6 {[%clk 0:02:23]} 15. Na4 {[%clk 0:03:00]}  Qd6 {[%clk 0:02:17]} 16. Qxd6 {[%clk 0:02:40]}  exd6 {[%clk 0:02:13]} 17. e3 {[%clk 0:02:26]}  Rb8 {[%clk 0:02:13]} 18. Rfd1 {[%clk 0:02:27]}  Rd8 {[%clk 0:01:52]} 19. Rac1 {[%clk 0:02:24]}  Bg4 {[%clk 0:01:51]} 20. Rd4 {[%clk 0:02:19]}  b5 {[%clk 0:01:47]} 21. Nb2 {[%clk 0:02:17]}  Bf5 {[%clk 0:01:41]} 22. Rc6 {[%clk 0:02:13]}  Ne8 {[%clk 0:01:36]} 23. g4 {[%clk 0:02:01]}  Bc8 {[%clk 0:01:30]} 24. Rc2 {[%clk 0:01:48]}  Bb7 {[%clk 0:01:22]} 25. Bxb7 {[%clk 0:01:37]}  Rxb7 {[%clk 0:01:22]} 26. Nd3 {[%clk 0:01:33]}  Kf6 {[%clk 0:01:23]} 27. Nb4 {[%clk 0:01:33]}  a5 {[%clk 0:01:21]} 28. Nd5+ {[%clk 0:01:33]}  Kg7 {[%clk 0:01:08]} 29. g5 {[%clk 0:01:29]}  Kf8 {[%clk 0:01:08]} 30. Rh4 {[%clk 0:01:27]}  Kg8 {[%clk 0:00:58]} 31. Re4 {[%clk 0:01:23]}  Kg7 {[%clk 0:00:44]} 32. Kg2 {[%clk 0:01:23]}  f6 {[%clk 0:00:38]} 33. h4 {[%clk 0:01:20]}  h6 {[%clk 0:00:30]} 34. Nf4 {[%clk 0:01:19]}  Ra8 {[%clk 0:00:25]} 35. Ne6+ {[%clk 0:01:05]}  Kf7 {[%clk 0:00:16]} 36. gxh6 {[%clk 0:01:05]}  Re7 {[%clk 0:00:13]} 37. h7 {[%clk 0:00:38]}  Ng7 {[%clk 0:00:14]} 38. Nc7 {[%clk 0:00:31]}  Rh8 {[%clk 0:00:14]} 39. Rxe7+ {[%clk 0:00:23]}  Kxe7 {[%clk 0:00:05]} 40. Nd5+ {[%clk 0:00:21]}  Ke6 {[%clk 0:00:05]} 41. Nf4+ {[%clk 0:00:22]}  Kf5 {[%clk 0:00:06]} 42. Rc7 {[%clk 0:00:23]}  Rxh7 {[%clk 0:00:06]} 43. Kf3 {[%clk 0:00:21]}  g5 {[%clk 0:00:04]} 44. e4+ {[%clk 0:00:20]}  Ke5 {[%clk 0:00:04]} 45. Ng6+ {[%clk 0:00:20]}  Kd4 {[%clk 0:00:04]} 46. Nf8 {[%clk 0:00:09]}  gxh4 {[%clk 0:00:03]} 47. Nxh7 {[%clk 0:00:07]}  Ne6 {[%clk 0:00:03]} 48. Rc1 {[%clk 0:00:06]}  Nc5 {[%clk 0:00:03]} 49. Rd1+ {[%clk 0:00:06]}  Ke5 {[%clk 0:00:03]} 50. Rd5+ {[%clk 0:00:06]}  Ke6 {[%clk 0:00:04]} 51. Rh5 {[%clk 0:00:07]}  Nd3 {[%clk 0:00:04]} 52. Rxh4 {[%clk 0:00:07]}  Ne5+ {[%clk 0:00:04]} 53. Ke2 {[%clk 0:00:07]}  a4 {[%clk 0:00:04]} 54. Rh6 {[%clk 0:00:07]}  axb3 {[%clk 0:00:05]} 55. Rxf6+ {[%clk 0:00:07]}  Kd7 {[%clk 0:00:05]} 56. axb3 {[%clk 0:00:07]}  Nc6 {[%clk 0:00:05]} 57. Rg6 {[%clk 0:00:08]}  Nd4+ {[%clk 0:00:06]} 58. Kd3 {[%clk 0:00:08]}  Nxb3 {[%clk 0:00:06]} 59. Nf6+ {[%clk 0:00:07]}  Kc6 {[%clk 0:00:07]} 60. Nd5 {[%clk 0:00:08]}  Nc5+ {[%clk 0:00:07]} 61. Ke3 {[%clk 0:00:08]}  b4 {[%clk 0:00:08]} 62. Rg8 {[%clk 0:00:09]}  b3 {[%clk 0:00:08]} 63. Rb8 {[%clk 0:00:08]}  Kd7 {[%clk 0:00:08]} 64. f4 {[%clk 0:00:08]}  Ke6 {[%clk 0:00:07]} 65. f5+ {[%clk 0:00:07]}  Kf7 {[%clk 0:00:08]} 66. Rb6 {[%clk 0:00:07]}  Nd7 {[%clk 0:00:09]} 67. Rb7 {[%clk 0:00:07]}  Ke8 {[%clk 0:00:08]} 68. Rxb3 {[%clk 0:00:06]}  Ne5 {[%clk 0:00:07]} 69. Rb7 {[%clk 0:00:07]} 1-0


[Site "https://www.chess.com"]

[Event "Titled Tuesday Blitz January 10 Late 2023"]
[White "Tologon tegin, Semetei"]
[Black "Makarian, Rudik"]
[WhiteFideId "13800574"]
[BlackFideId "44105681"]
[WhiteElo "2372"]
[BlackElo "2545"]
[Result "0-1"]
[Round "05"]
[TimeControl "180+2"]
[Date "2023.01.10"]
[WhiteClock "0:00:03"]
[BlackClock "0:00:11"]

1. Nf3 {[%clk 0:00:00]}  Nf6 {[%clk 0:00:00]} 2. g3 {[%clk 0:02:55]}  b5 {[%clk 0:02:59]} 3. e3 {[%clk 0:02:53]}  a6 {[%clk 0:03:00]} 4. a4 {[%clk 0:02:50]}  b4 {[%clk 0:02:58]} 5. Bg2 {[%clk 0:02:40]}  Bb7 {[%clk 0:02:56]} 6. O-O {[%clk 0:02:39]}  e6 {[%clk 0:02:57]} 7. c4 {[%clk 0:02:39]}  Be7 {[%clk 0:02:58]} 8. b3 {[%clk 0:02:39]}  O-O {[%clk 0:02:57]} 9. Bb2 {[%clk 0:02:38]}  c5 {[%clk 0:02:57]} 10. d4 {[%clk 0:02:36]}  a5 {[%clk 0:02:58]} 11. Nbd2 {[%clk 0:02:35]}  d5 {[%clk 0:02:57]} 12. Ne5 {[%clk 0:02:35]}  Nbd7 {[%clk 0:02:55]} 13. Qe2 {[%clk 0:02:33]}  Nxe5 {[%clk 0:02:54]} 14. dxe5 {[%clk 0:02:21]}  Nd7 {[%clk 0:02:44]} 15. f4 {[%clk 0:02:22]}  Nb6 {[%clk 0:02:44]} 16. Rad1 {[%clk 0:02:15]}  Qc7 {[%clk 0:02:40]} 17. cxd5 {[%clk 0:02:13]}  Nxd5 {[%clk 0:02:39]} 18. e4 {[%clk 0:02:03]}  Nb6 {[%clk 0:02:26]} 19. f5 {[%clk 0:01:47]}  c4 {[%clk 0:02:21]} 20. Nxc4 {[%clk 0:01:47]}  Nxc4 {[%clk 0:02:22]} 21. bxc4 {[%clk 0:01:44]}  Bc5+ {[%clk 0:02:20]} 22. Kh1 {[%clk 0:01:45]}  Rfd8 {[%clk 0:02:13]} 23. Qg4 {[%clk 0:01:44]}  Qc6 {[%clk 0:02:10]} 24. Qg5 {[%clk 0:01:40]}  Rxd1 {[%clk 0:01:55]} 25. Rxd1 {[%clk 0:01:14]}  h6 {[%clk 0:01:32]} 26. Qd2 {[%clk 0:01:14]}  Qxe4 {[%clk 0:01:32]} 27. fxe6 {[%clk 0:00:36]}  fxe6 {[%clk 0:01:05]} 28. h4 {[%clk 0:00:27]}  Qxg2+ {[%clk 0:01:00]} 29. Qxg2 {[%clk 0:00:17]}  Bxg2+ {[%clk 0:00:50]} 30. Kxg2 {[%clk 0:00:17]}  Rc8 {[%clk 0:00:51]} 31. Kf3 {[%clk 0:00:18]}  Kf7 {[%clk 0:00:52]} 32. Ke4 {[%clk 0:00:15]}  Ke7 {[%clk 0:00:43]} 33. h5 {[%clk 0:00:15]}  Bf2 {[%clk 0:00:44]} 34. g4 {[%clk 0:00:12]}  Rxc4+ {[%clk 0:00:40]} 35. Kf3 {[%clk 0:00:11]}  Rc2 {[%clk 0:00:40]} 36. Bd4 {[%clk 0:00:12]}  Bxd4 {[%clk 0:00:37]} 37. Rxd4 {[%clk 0:00:11]}  b3 {[%clk 0:00:37]} 38. Rd1 {[%clk 0:00:12]}  b2 {[%clk 0:00:16]} 39. Rb1 {[%clk 0:00:04]}  Kd7 {[%clk 0:00:16]} 40. Ke3 {[%clk 0:00:05]}  Kc6 {[%clk 0:00:16]} 41. Kd3 {[%clk 0:00:05]}  Rg2 {[%clk 0:00:16]} 42. Kc3 {[%clk 0:00:05]}  Kd5 {[%clk 0:00:16]} 43. Rd1+ {[%clk 0:00:05]}  Kxe5 {[%clk 0:00:15]} 44. Kc4 {[%clk 0:00:02]}  Kf4 {[%clk 0:00:16]} 45. Kb5 {[%clk 0:00:03]}  Rc2 {[%clk 0:00:15]} 46. Rb1 {[%clk 0:00:03]}  e5 {[%clk 0:00:14]} 47. Kxa5 {[%clk 0:00:01]}  e4 {[%clk 0:00:14]} 48. Kb4 {[%clk 0:00:02]}  e3 {[%clk 0:00:15]} 49. Kb3 {[%clk 0:00:02]}  Rd2 {[%clk 0:00:15]} 50. Kc3 {[%clk 0:00:03]}  Kf3 {[%clk 0:00:13]} 51. a5 {[%clk 0:00:03]}  Rd5 {[%clk 0:00:11]} 52. a6 {[%clk 0:00:04]}  Ra5 {[%clk 0:00:11]} 53. Rxb2 {[%clk 0:00:04]}  Rxa6 {[%clk 0:00:11]} 54. Kd4 {[%clk 0:00:03]}  e2 {[%clk 0:00:12]} 55. Rb3+ {[%clk 0:00:02]}  Kf2 {[%clk 0:00:12]} 56. Rb2 {[%clk 0:00:03]}  Kf1 {[%clk 0:00:12]} 57. Ke3 {[%clk 0:00:03]}  e1=Q+ {[%clk 0:00:11]} 0-1


[Site "https://www.chess.com"]